lending/lending_fUSD_20250430
["ID","MTS","AMOUNT","RATE_DAILY","PERIOD"]
[359460468,1746039044738,-151.0,0.00033349,2]
[359460469,1746039044748,-223.0315306,0.00033349,2]
[359460470,1746039044757,-1170.10002796,0.000335,2]
[359460471,1746039044766,-482.63,0.00033674,2]
[359460472,1746039044776,-291.183,0.00033674,2]
[359460473,1746039044785,-153.0,0.00033674,2]
[359460474,1746039044794,-878.0,0.00033674,2]
[359460475,1746039044804,-1122.46,0.0003371,2]
[359460476,1746039044813,-508.25,0.000338,120]
[359460477,1746039044822,-508.25,0.000338,120]
[359460478,1746039044832,-508.25,0.000338,120]
[359460479,1746039044841,-508.25,0.000338,120]
[359460480,1746039044851,-4898.45936871,0.00033831,11]
[359460481,1746039044860,-500.0,0.00033903,120]
[359460482,1746039044869,-455.76,0.00033925,2]
[359460483,1746039044879,-1644.16,0.00033925,2]
[359460484,1746039044888,-455.76,0.00033925,2]
[359460485,1746039044898,-454.52,0.00033925,2]
[359460486,1746039044907,-910.9,0.00033925,2]
[359460487,1746039044916,-200.0,0.0003395,2]
[359460488,1746039044925,-2032.23191869,0.00034,2]
[359460489,1746039044935,-157.59,0.00034,2]
[359460490,1746039044944,-168.829307,0.00034027,60]
[359460491,1746039044954,-508.25,0.000341,120]
[359460492,1746039044963,-508.25,0.000341,120]
[359460493,1746039044972,-508.25,0.000341,120]
[359460494,1746039044981,-508.25,0.000341,120]
[359460495,1746039044990,-296.92880582,0.00034283,2]
[359460496,1746039044999,-508.25,0.000344,120]
[359460497,1746039045009,-508.25,0.000344,120]
[359460498,1746039045018,-508.25,0.000344,120]
[359460499,1746039045027,-150.0,0.00034452,2]
[359460500,1746039045037,-150.0,0.00034528,2]
[359460501,1746039045046,-150.0,0.00034548,10]
[359460502,1746039045055,-4898.45936871,0.00034693,12]
[359460503,1746039045064,-4000.0,0.000347,5]
[359460504,1746039045075,-150.0,0.00034714,2]
[359460505,1746039045086,-151.0,0.00034718,2]
[359460506,1746039045095,-231.28369723,0.00034718,2]
[359460507,1746039045109,-508.26,0.000348,120]
[359460508,1746039045119,-508.25,0.000348,120]
[359460509,1746039045128,-20292.48345863,0.00034888,5]
[359460510,1746039045138,-1000.0,0.00035,2]
[359460511,1746039045148,-12500.0,0.00035,5]
[359460512,1746039045158,-700.0,0.00035,2]
[359460513,1746039045167,-9693.34315921,0.00035,5]
[359460514,1746039045177,-12500.0,0.00035,5]
[359460515,1746039045187,-888.0,0.00035,5]
[359460516,1746039045197,-314.07803358,0.00035,7]
[359460517,1746039045207,-122487.70293225,0.00035,4]
[359460518,1746039045217,-3002.40614776,0.00035,2]
[359460519,1746039045228,-938.29186208,0.00035,2]
[359460520,1746039045238,-212.14,0.00035068,2]
[359460521,1746039045248,-508.25,0.000351,120]
[359460522,1746039045258,-1513.2674841,0.00035126,4]
[359460523,1746039045267,-152.0,0.00035131,3]
[359460524,1746039045424,-150.44,0.0003516,2]
[359460525,1746039045434,-508.25,0.000354,120]
[359460526,1746039045445,-100000.0,0.000355,4]
[359460527,1746039045454,-153.73963755,0.00035516,15]
[359460528,1746039045464,-158.65205756,0.00035516,2]
[359460529,1746039045474,-4898.45936871,0.00035555,12]
[359460530,1746039045484,-14101.4350185,0.00035568,2]
[359460531,1746039045495,-152.187071,0.00035592,7]
[359460532,1746039045504,-151.0,0.00035592,7]
[359460533,1746039045516,-151.0,0.00035592,7]
[359460534,1746039045527,-178.828813,0.00035592,7]
[359460535,1746039045540,-415.844051,0.00035592,7]
[359460536,1746039045550,-415.844051,0.00035592,7]
[359460537,1746039045559,-349.894209,0.00035592,7]
[359460538,1746039045569,-349.894209,0.00035592,7]
[359460539,1746039045579,-435.740828,0.00035592,7]
[359460540,1746039045588,-435.740828,0.00035592,7]
[359460541,1746039045598,-152.921439,0.00035592,7]
[359460542,1746039045607,-154.361751,0.00035592,7]
[359460543,1746039045617,-151.0,0.00035592,7]
[359460544,1746039045627,-151.0,0.00035592,7]
[359460545,1746039045636,-151.0,0.00035592,7]
[359460546,1746039045646,-161.972147,0.00035592,7]
[359460547,1746039045655,-151.0,0.00035592,7]
[359460548,1746039045665,-154.48971,0.00035592,7]
[359460549,1746039045674,-151.0,0.00035592,7]
[359460550,1746039045684,-151.0,0.00035592,7]
[359460551,1746039045693,-151.0,0.00035592,7]
[359460552,1746039045705,-151.0,0.00035592,7]
[359460553,1746039045715,-151.0,0.00035592,7]
[359460554,1746039045724,-160.541794,0.00035592,7]
[359460555,1746039045734,-150.0,0.00035592,2]
[359460556,1746039045743,-151.0,0.00035592,7]
[359460557,1746039045753,-154.846212,0.00035592,7]
[359460558,1746039045762,-151.0,0.00035592,7]
[359460559,1746039045772,-940.8370902,0.00035592,2]
[359460560,1746039045782,-151.0,0.00035592,7]
[359460561,1746039045792,-200.855988,0.00035592,7]
[359460562,1746039045801,-151.0,0.00035592,7]
[359460563,1746039045810,-200.855988,0.00035592,7]
[359460564,1746039045820,-301.416633,0.00035592,7]
[359460565,1746039045829,-155.221886,0.00035592,7]
[359460566,1746039045839,-151.0,0.00035592,7]
[359460567,1746039045848,-301.416633,0.00035592,7]
[359460568,1746039045858,-151.0,0.00035592,7]
[359460569,1746039045868,-166.424019,0.00035592,7]
[359460570,1746039045878,-151.0,0.00035592,7]
[359460571,1746039045888,-358.275189,0.00035592,7]
[359460572,1746039045898,-358.275189,0.00035592,7]
[359460573,1746039045908,-295.051514,0.00035592,7]
[359460574,1746039045918,-295.051514,0.00035592,7]
[359460575,1746039045928,-37471.3216034,0.00035592,2]
[359460576,1746039045939,-24530.8551543,0.00035592,2]
[359460579,1746039045949,-151.0,0.00035592,7]
[359460580,1746039045958,-151.0,0.00035592,7]
[359460581,1746039045968,-151.0,0.00035592,7]
[359460582,1746039045978,-4163.5401906,0.00035592,2]
[359460583,1746039045988,-153.153231,0.00035592,7]
[359460584,1746039045997,-55540.4260451,0.00035592,2]
[359460585,1746039046007,-151.0,0.00035592,7]
[359460586,1746039046016,-151.0,0.00035592,7]
[359460587,1746039046026,-151.0,0.00035592,7]
[359460588,1746039046036,-151.0,0.00035592,7]
[359460589,1746039046046,-500.0,0.00035615,10]
[359460590,1746039046056,-498.398208,0.00035616,5]
[359460591,1746039046065,-151.0,0.00035616,7]
[359460592,1746039046075,-151.0,0.00035616,7]
[359460593,1746039046084,-257.753265,0.00035616,7]
[359460594,1746039046094,-533.90844544,0.00035616,5]
[359460595,1746039046107,-500.0,0.00035616,5]
[359460596,1746039046117,-500.0,0.00035616,5]
[359460597,1746039046127,-566.0437758,0.00035616,5]
[359460598,1746039046136,-545.60988376,0.00035616,5]
[359460599,1746039046147,-151.0,0.00035616,7]
[359460600,1746039046157,-151.0,0.00035616,7]
[359460601,1746039046166,-549.63197854,0.00035616,5]
[359460602,1746039046176,-450.0,0.00035616,5]
[359460603,1746039046185,-450.0,0.00035616,5]
[359460604,1746039046195,-450.0,0.00035616,5]
[359460605,1746039046204,-450.0,0.00035616,5]
[359460606,1746039046213,-167.770005,0.00035616,7]
[359460607,1746039046225,-151.0,0.00035616,7]
[359460608,1746039046235,-151.0,0.00035616,7]
[359460609,1746039046245,-508.20814044,0.00035616,5]
[359460610,1746039046256,-502.01595169,0.00035616,5]
[359460611,1746039046266,-450.0,0.00035616,5]
[359460612,1746039046277,-450.0,0.00035616,5]
[359460613,1746039046287,-521.85472436,0.00035616,5]
[359460614,1746039046298,-450.0,0.00035616,5]
[359460615,1746039046308,-470.64787324,0.00035616,5]
[359460616,1746039046318,-515.64812991,0.00035616,5]
[359460617,1746039046328,-512.49901742,0.00035616,5]
[359460618,1746039046339,-501.59842298,0.00035616,5]
[359460619,1746039046349,-450.0,0.00035616,5]
[359460620,1746039046360,-450.0,0.00035616,5]
[359460621,1746039046370,-450.0,0.00035616,5]
[359460622,1746039046379,-450.0,0.00035616,5]
[359460623,1746039046389,-450.0,0.00035616,5]
[359460624,1746039046399,-450.0,0.00035616,5]
[359460625,1746039046409,-450.0,0.00035616,5]
[359460626,1746039046419,-450.0,0.00035616,5]
[359460627,1746039046429,-450.0,0.00035616,5]
[359460628,1746039046438,-450.0,0.00035616,5]
[359460629,1746039046447,-450.0,0.00035616,5]
[359460630,1746039046457,-450.0,0.00035616,5]
[359460631,1746039046468,-151.0,0.00035616,7]
[359460632,1746039046477,-450.0,0.00035616,5]
[359460633,1746039046487,-450.0,0.00035616,5]
[359460634,1746039046497,-450.0,0.00035616,5]
[359460635,1746039046507,-450.0,0.00035616,5]
[359460636,1746039046517,-450.0,0.00035616,5]
[359460638,1746039046526,-450.0,0.00035616,5]
[359460640,1746039046536,-450.0,0.00035616,5]
[359460641,1746039046545,-450.0,0.00035616,5]
[359460642,1746039046555,-151.0,0.00035616,7]
[359460643,1746039046565,-151.0,0.00035616,7]
[359460644,1746039046574,-450.0,0.00035616,5]
[359460645,1746039046584,-450.0,0.00035616,5]
[359460646,1746039046594,-151.0,0.00035616,7]
[359460647,1746039046603,-151.0,0.00035616,7]
[359460648,1746039046615,-450.0,0.00035616,5]
[359460649,1746039046626,-151.0,0.00035616,7]
[359460650,1746039046635,-450.0,0.00035616,5]
[359460651,1746039046645,-158.80948,0.00035616,7]
[359460652,1746039046655,-450.0,0.00035616,5]
[359460653,1746039046665,-191.36843711,0.00035616,5]
[359460654,1746039046675,-450.0,0.00035616,5]
[359460655,1746039046685,-450.0,0.00035616,5]
[359460656,1746039046694,-450.0,0.00035616,5]
[359460657,1746039046704,-415.844051,0.00035616,7]
[359460658,1746039046713,-151.0,0.00035616,7]
[359460659,1746039046723,-157.407198,0.00035616,7]
[359460660,1746039046733,-161.394067,0.00035616,7]
[359460661,1746039046743,-450.0,0.00035616,5]
[359460662,1746039046752,-450.0,0.00035616,5]
[359460663,1746039046762,-415.844051,0.00035616,7]
[359460664,1746039046771,-508.62934066,0.00035616,5]
[359460665,1746039046781,-450.0,0.00035616,5]
[359460667,1746039046790,-500.0,0.00035616,5]
[359460669,1746039046800,-502.46834093,0.00035616,5]
[359460671,1746039046809,-450.0,0.00035616,5]
[359460672,1746039046818,-161.394067,0.00035616,7]
[359460674,1746039046827,-450.0,0.00035616,5]
[359460676,1746039046837,-450.0,0.00035616,5]
[359460677,1746039046846,-486.9828451,0.00035616,5]
[359460678,1746039046856,-547.4442732,0.00035616,5]
[359460679,1746039046866,-450.0,0.00035616,5]
[359460680,1746039046875,-151.0,0.00035616,7]
[359460681,1746039046884,-450.0,0.00035616,5]
[359460682,1746039046894,-450.0,0.00035616,5]
[359460683,1746039046903,-450.0,0.00035616,5]
[359460684,1746039046912,-542.65368756,0.00035616,5]
[359460685,1746039046922,-500.0,0.00035616,5]
[359460686,1746039046932,-500.0,0.00035616,5]
[359460687,1746039046942,-500.0,0.00035616,5]
[359460688,1746039046951,-450.0,0.00035616,5]
[359460689,1746039046961,-307.77283027,0.00035616,5]
[359460690,1746039046971,-450.0,0.00035616,5]
[359460691,1746039046981,-450.0,0.00035616,5]
[359460692,1746039046990,-450.0,0.00035616,5]
[359460693,1746039047000,-450.0,0.00035616,5]
[359460694,1746039047010,-507.86475724,0.00035616,5]
[359460695,1746039047019,-450.0,0.00035616,5]
[359460696,1746039047029,-450.0,0.00035616,5]
[359460697,1746039047038,-450.0,0.00035616,5]
[359460698,1746039047048,-450.0,0.00035616,5]
[359460699,1746039047057,-450.0,0.00035616,5]
[359460700,1746039047067,-450.0,0.00035616,5]
[359460701,1746039047076,-450.0,0.00035616,5]
[359460702,1746039047085,-450.0,0.00035616,5]
[359460703,1746039047094,-450.0,0.00035616,5]
[359460704,1746039047107,-190.21440029,0.00035616,5]
[359460705,1746039047116,-450.0,0.00035616,5]
[359460706,1746039047126,-450.0,0.00035616,5]
[359460707,1746039047135,-504.27289461,0.00035616,5]
[359460708,1746039047145,-450.0,0.00035616,5]
[359460709,1746039047156,-450.0,0.00035616,5]
[359460710,1746039047165,-450.0,0.00035616,5]
[359460711,1746039047174,-505.71794473,0.00035616,5]
[359460712,1746039047184,-151.0,0.00035616,7]
[359460713,1746039047193,-151.0,0.00035616,7]
[359460714,1746039047203,-450.0,0.00035616,5]
[359460715,1746039047212,-450.0,0.00035616,5]
[359460716,1746039047222,-573.51356912,0.00035616,5]
[359460717,1746039047231,-511.91258655,0.00035616,5]
[359460718,1746039047240,-450.0,0.00035616,5]
[359460719,1746039047251,-450.0,0.00035616,5]
[359460720,1746039047260,-450.0,0.00035616,5]
[359460721,1746039047269,-450.0,0.00035616,5]
[359460722,1746039047279,-450.0,0.00035616,5]
[359460723,1746039047288,-450.0,0.00035616,5]
[359460724,1746039047297,-450.0,0.00035616,5]
[359460725,1746039047307,-450.0,0.00035616,5]
[359460726,1746039047316,-511.83990601,0.00035616,5]
[359460727,1746039047325,-450.0,0.00035616,5]
[359460728,1746039047335,-450.0,0.00035616,5]
[359460729,1746039047344,-450.0,0.00035616,5]
[359460730,1746039047353,-555.1454023,0.00035616,5]
[359460731,1746039047363,-450.0,0.00035616,5]
[359460732,1746039047372,-450.0,0.00035616,5]
[359460733,1746039047382,-450.0,0.00035616,5]
[359460734,1746039047391,-503.40939563,0.00035616,5]
[359460735,1746039047400,-450.0,0.00035616,5]
[359460736,1746039047409,-450.0,0.00035616,5]
[359460737,1746039047419,-450.0,0.00035616,5]
[359460738,1746039047429,-450.0,0.00035616,5]
[359460739,1746039047438,-450.0,0.00035616,5]
[359460740,1746039047448,-349.894209,0.00035616,7]
[359460741,1746039047457,-450.0,0.00035616,5]
[359460742,1746039047467,-514.87178478,0.00035616,5]
[359460743,1746039047476,-349.894209,0.00035616,7]
[359460744,1746039047485,-450.0,0.00035616,5]
[359460745,1746039047494,-435.740828,0.00035616,7]
[359460746,1746039047503,-564.86667533,0.00035616,5]
[359460747,1746039047514,-450.0,0.00035616,5]
[359460748,1746039047525,-450.0,0.00035616,5]
[359460749,1746039047535,-450.0,0.00035616,5]
[359460750,1746039047545,-435.740828,0.00035616,7]
[359460751,1746039047554,-450.0,0.00035616,5]
[359460752,1746039047564,-450.0,0.00035616,5]
[359460753,1746039047574,-450.0,0.00035616,5]
[359460754,1746039047584,-450.0,0.00035616,5]
[359460755,1746039047593,-450.0,0.00035616,5]
[359460756,1746039047602,-450.0,0.00035616,5]
[359460758,1746039047611,-450.0,0.00035616,5]
[359460759,1746039047620,-450.0,0.00035616,5]
[359460761,1746039047629,-450.0,0.00035616,5]
[359460762,1746039047639,-450.0,0.00035616,5]
[359460763,1746039047648,-450.0,0.00035616,5]
[359460764,1746039047657,-500.0,0.00035616,5]
[359460765,1746039047666,-553.27365495,0.00035616,5]
[359460766,1746039047676,-450.0,0.00035616,5]
[359460767,1746039047685,-450.0,0.00035616,5]
[359460768,1746039047694,-450.0,0.00035616,5]
[359460769,1746039047703,-542.8859724,0.00035616,5]
[359460770,1746039047712,-450.0,0.00035616,5]
[359460771,1746039047722,-151.0,0.00035616,7]
[359460772,1746039047731,-513.65264512,0.00035616,5]
[359460773,1746039047740,-450.0,0.00035616,5]
[359460774,1746039047749,-450.0,0.00035616,5]
[359460775,1746039047758,-450.0,0.00035616,5]
[359460776,1746039047768,-450.0,0.00035616,5]
[359460777,1746039047777,-151.0,0.00035616,7]
[359460778,1746039047787,-450.0,0.00035616,5]
[359460779,1746039047796,-450.0,0.00035616,5]
[359460780,1746039047805,-450.0,0.00035616,5]
[359460781,1746039047814,-534.45584963,0.00035616,5]
[359460782,1746039047824,-151.0,0.00035616,7]
[359460783,1746039047833,-450.0,0.00035616,5]
[359460784,1746039047842,-450.0,0.00035616,5]
[359460785,1746039047851,-450.0,0.00035616,5]
[359460786,1746039047860,-450.0,0.00035616,5]
[359460787,1746039048014,-450.0,0.00035616,5]
[359460788,1746039048024,-450.0,0.00035616,5]
[359460789,1746039048034,-151.0,0.00035616,7]
[359460790,1746039048043,-450.0,0.00035616,5]
[359460791,1746039048052,-165.697451,0.00035616,7]
[359460792,1746039048062,-173.42806469,0.00035616,5]
[359460793,1746039048071,-450.0,0.00035616,5]
[359460794,1746039048081,-450.0,0.00035616,5]
[359460795,1746039048090,-539.49918008,0.00035616,5]
[359460796,1746039048099,-206.81912537,0.00035616,5]
[359460797,1746039048113,-450.0,0.00035616,5]
[359460798,1746039048123,-450.0,0.00035616,5]
[359460799,1746039048132,-450.0,0.00035616,5]
[359460800,1746039048141,-450.0,0.00035616,5]
[359460801,1746039048151,-450.0,0.00035616,5]
[359460802,1746039048161,-450.0,0.00035616,5]
[359460803,1746039048170,-450.0,0.00035616,5]
[359460804,1746039048181,-157.249722,0.00035616,7]
[359460805,1746039048190,-450.0,0.00035616,5]
[359460806,1746039048199,-450.0,0.00035616,5]
[359460807,1746039048209,-450.0,0.00035616,5]
[359460808,1746039048218,-450.0,0.00035616,5]
[359460809,1746039048228,-541.08491608,0.00035616,5]
[359460810,1746039048237,-450.0,0.00035616,5]
[359460811,1746039048246,-450.0,0.00035616,5]
[359460812,1746039048256,-450.0,0.00035616,5]
[359460813,1746039048265,-450.0,0.00035616,5]
[359460814,1746039048275,-450.0,0.00035616,5]
[359460815,1746039048284,-450.0,0.00035616,5]
[359460816,1746039048294,-450.0,0.00035616,5]
[359460817,1746039048303,-450.0,0.00035616,5]
[359460818,1746039048313,-545.96849959,0.00035616,5]
[359460819,1746039048323,-450.0,0.00035616,5]
[359460820,1746039048332,-450.0,0.00035616,5]
[359460821,1746039048342,-450.0,0.00035616,5]
[359460822,1746039048351,-450.0,0.00035616,5]
[359460823,1746039048361,-531.39949321,0.00035616,5]
[359460824,1746039048370,-546.13807816,0.00035616,5]
[359460825,1746039048379,-586.60118094,0.00035616,5]
[359460826,1746039048389,-151.0,0.00035616,7]
[359460827,1746039048399,-572.93314606,0.00035616,5]
[359460828,1746039048408,-450.0,0.00035616,5]
[359460829,1746039048418,-151.0,0.00035616,7]
[359460830,1746039048429,-450.0,0.00035616,5]
[359460831,1746039048438,-450.0,0.00035616,5]
[359460832,1746039048448,-450.0,0.00035616,5]
[359460833,1746039048458,-151.0,0.00035616,7]
[359460834,1746039048467,-450.0,0.00035616,5]
[359460835,1746039048477,-151.0,0.00035616,7]
[359460836,1746039048487,-450.0,0.00035616,5]
[359460837,1746039048497,-450.0,0.00035616,5]
[359460838,1746039048508,-151.0,0.00035616,7]
[359460839,1746039048517,-450.0,0.00035616,5]
[359460840,1746039048527,-450.0,0.00035616,5]
[359460841,1746039048537,-450.0,0.00035616,5]
[359460842,1746039048547,-450.0,0.00035616,5]
[359460843,1746039048557,-450.0,0.00035616,5]
[359460844,1746039048566,-151.0,0.00035616,7]
[359460845,1746039048575,-450.0,0.00035616,5]
[359460846,1746039048585,-450.0,0.00035616,5]
[359460847,1746039048595,-450.0,0.00035616,5]
[359460848,1746039048604,-151.0,0.00035616,7]
[359460849,1746039048615,-450.0,0.00035616,5]
[359460850,1746039048624,-590.47018587,0.00035616,5]
[359460851,1746039048633,-470.0,0.00035616,5]
[359460852,1746039048643,-151.0,0.00035616,7]
[359460853,1746039048652,-470.0,0.00035616,5]
[359460854,1746039048662,-450.0,0.00035616,5]
[359460855,1746039048671,-450.0,0.00035616,5]
[359460856,1746039048682,-450.0,0.00035616,5]
[359460857,1746039048692,-450.0,0.00035616,5]
[359460858,1746039048701,-151.220577,0.00035616,7]
[359460859,1746039048711,-450.0,0.00035616,5]
[359460860,1746039048720,-450.0,0.00035616,5]
[359460861,1746039048730,-515.81712522,0.00035616,5]
[359460862,1746039048739,-450.0,0.00035616,5]
[359460863,1746039048749,-450.0,0.00035616,5]
[359460864,1746039048758,-450.0,0.00035616,5]
[359460865,1746039048767,-450.0,0.00035616,5]
[359460866,1746039048777,-450.0,0.00035616,5]
[359460867,1746039048786,-450.0,0.00035616,5]
[359460868,1746039048795,-450.0,0.00035616,5]
[359460869,1746039048805,-450.0,0.00035616,5]
[359460870,1746039048814,-450.0,0.00035616,5]
[359460871,1746039048823,-504.92602217,0.00035616,5]
[359460872,1746039048832,-450.0,0.00035616,5]
[359460873,1746039048841,-469.33,0.00035616,5]
[359460874,1746039048850,-450.0,0.00035616,5]
[359460875,1746039048860,-532.68066343,0.00035616,5]
[359460876,1746039048869,-450.0,0.00035616,5]
[359460877,1746039048878,-450.0,0.00035616,5]
[359460878,1746039048888,-450.0,0.00035616,5]
[359460879,1746039048897,-450.0,0.00035616,5]
[359460880,1746039048906,-450.0,0.00035616,5]
[359460881,1746039048915,-519.04,0.00035616,5]
[359460882,1746039048925,-450.0,0.00035616,5]
[359460883,1746039048934,-450.0,0.00035616,5]
[359460884,1746039048943,-481.63,0.00035616,5]
[359460885,1746039048953,-450.0,0.00035616,5]
[359460886,1746039048962,-450.0,0.00035616,5]
[359460887,1746039048972,-450.0,0.00035616,5]
[359460888,1746039048982,-151.0,0.00035616,7]
[359460889,1746039048991,-450.0,0.00035616,5]
[359460890,1746039049000,-151.0,0.00035616,7]
[359460891,1746039049009,-240.82822222,0.00035616,5]
[359460892,1746039049019,-450.0,0.00035616,5]
[359460893,1746039049028,-450.0,0.00035616,5]
[359460894,1746039049037,-530.0,0.00035616,5]
[359460895,1746039049046,-450.0,0.00035616,5]
[359460896,1746039049055,-450.0,0.00035616,5]
[359460897,1746039049065,-450.0,0.00035616,5]
[359460898,1746039049075,-450.0,0.00035616,5]
[359460899,1746039049084,-450.0,0.00035616,5]
[359460900,1746039049094,-450.0,0.00035616,5]
[359460901,1746039049103,-450.0,0.00035616,5]
[359460902,1746039049115,-450.0,0.00035616,5]
[359460903,1746039049125,-450.0,0.00035616,5]
[359460904,1746039049134,-450.0,0.00035616,5]
[359460905,1746039049144,-450.0,0.00035616,5]
[359460906,1746039049154,-866.24,0.00035616,5]
[359460907,1746039049164,-450.0,0.00035616,5]
[359460908,1746039049174,-151.0,0.00035616,7]
[359460909,1746039049185,-450.0,0.00035616,5]
[359460910,1746039049194,-450.0,0.00035616,5]
[359460911,1746039049205,-535.50644486,0.00035616,5]
[359460912,1746039049214,-566.41849724,0.00035616,5]
[359460913,1746039049224,-450.0,0.00035616,5]
[359460914,1746039049233,-450.0,0.00035616,5]
[359460915,1746039049242,-450.0,0.00035616,5]
[359460916,1746039049252,-450.0,0.00035616,5]
[359460917,1746039049261,-522.37413416,0.00035616,5]
[359460918,1746039049272,-450.0,0.00035616,5]
[359460919,1746039049281,-450.0,0.00035616,5]
[359460920,1746039049291,-450.0,0.00035616,5]
[359460921,1746039049300,-558.57825584,0.00035616,5]
[359460922,1746039049310,-496.18391444,0.00035616,5]
[359460923,1746039049319,-450.0,0.00035616,5]
[359460924,1746039049328,-429.72981048,0.00035616,5]
[359460925,1746039049337,-450.0,0.00035616,5]
[359460926,1746039049347,-450.0,0.00035616,5]
[359460927,1746039049356,-450.0,0.00035616,5]
[359460928,1746039049365,-450.0,0.00035616,5]
[359460929,1746039049375,-450.0,0.00035616,5]
[359460930,1746039049385,-537.50393876,0.00035616,5]
[359460931,1746039049394,-450.0,0.00035616,5]
[359460932,1746039049403,-519.68,0.00035616,5]
[359460933,1746039049413,-450.0,0.00035616,5]
[359460934,1746039049423,-450.0,0.00035616,5]
[359460935,1746039049432,-450.0,0.00035616,5]
[359460936,1746039049442,-1009.46,0.00035616,5]
[359460937,1746039049451,-450.0,0.00035616,5]
[359460938,1746039049460,-450.0,0.00035616,5]
[359460939,1746039049470,-450.0,0.00035616,5]
[359460940,1746039049479,-151.0,0.00035616,7]
[359460941,1746039049489,-555.35026048,0.00035616,5]
[359460942,1746039049498,-450.0,0.00035616,5]
[359460943,1746039049508,-450.0,0.00035616,5]
[359460944,1746039049518,-450.0,0.00035616,5]
[359460945,1746039049527,-450.0,0.00035616,5]
[359460946,1746039049537,-450.0,0.00035616,5]
[359460947,1746039049546,-450.0,0.00035616,5]
[359460948,1746039049555,-151.0,0.00035616,7]
[359460949,1746039049565,-450.0,0.00035616,5]
[359460950,1746039049575,-450.0,0.00035616,5]
[359460951,1746039049584,-450.0,0.00035616,5]
[359460952,1746039049593,-160.076457,0.00035616,7]
[359460953,1746039049602,-450.0,0.00035616,5]
[359460954,1746039049612,-450.0,0.00035616,5]
[359460955,1746039049621,-552.55046955,0.00035616,5]
[359460956,1746039049631,-450.0,0.00035616,5]
[359460957,1746039049640,-500.0,0.00035616,5]
[359460958,1746039049649,-450.0,0.00035616,5]
[359460959,1746039049658,-450.0,0.00035616,5]
[359460960,1746039049668,-450.0,0.00035616,5]
[359460961,1746039049678,-793.46,0.00035616,5]
[359460962,1746039049687,-450.0,0.00035616,5]
[359460963,1746039049697,-450.0,0.00035616,5]
[359460964,1746039049706,-450.0,0.00035616,5]
[359460965,1746039049715,-450.0,0.00035616,5]
[359460966,1746039049725,-450.0,0.00035616,5]
[359460967,1746039049734,-151.0,0.00035616,7]
[359460968,1746039049744,-450.0,0.00035616,5]
[359460969,1746039049753,-450.0,0.00035616,5]
[359460970,1746039049762,-450.0,0.00035616,5]
[359460971,1746039049771,-450.0,0.00035616,5]
[359460972,1746039049781,-450.0,0.00035616,5]
[359460973,1746039049793,-450.0,0.00035616,5]
[359460974,1746039049802,-450.0,0.00035616,5]
[359460975,1746039049811,-450.0,0.00035616,5]
[359460976,1746039049822,-450.0,0.00035616,5]
[359460977,1746039049832,-450.0,0.00035616,5]
[359460978,1746039049842,-450.0,0.00035616,5]